fUST/lending_fUST_20250716
["ID","MTS","AMOUNT","RATE_DAILY","PERIOD"]
[372402354,1752629440294,-460.0,0.00021623,2]
[372402356,1752629440308,-550.76333501,0.00021623,2]
[372402358,1752629440318,-460.0,0.00021805,2]
[372402360,1752629440327,-460.0,0.00021805,2]
[372402362,1752629440336,-460.0,0.00021896,2]
[372402364,1752629440348,-358.04,0.00021897,2]
[372402366,1752629440357,-460.0,0.00021897,2]
[372402368,1752629440367,-150.07429765,0.00021918,2]
[372402371,1752629440377,-460.0,0.00022079,2]
[372402373,1752629440387,-460.0,0.00022079,2]
[372402375,1752629440397,-460.0,0.0002217,2]
[372402377,1752629440407,-460.0,0.00022171,2]
[372402379,1752629440417,-151.0,0.00022181,7]
[372402381,1752629440426,-706.14,0.00022343,3]
[372402383,1752629440437,-353.08,0.00022343,3]
[372402385,1752629440447,-460.0,0.00022353,2]
[372402387,1752629440457,-150.42666462,0.00022353,2]
[372402389,1752629440466,-460.0,0.00022444,2]
[372402391,1752629440475,-460.0,0.00022445,2]
[372402394,1752629440486,-589.0,0.00022532,2]
[372402396,1752629440495,-529.84095027,0.00022627,2]
[372402398,1752629440507,-151.94891458,0.0002268,2]
[372402400,1752629440516,-460.0,0.00022718,2]
[372402401,1752629440526,-600.24,0.00022719,2]
[372402404,1752629440536,-500.0,0.00022939,2]
[372402406,1752629440545,-460.0,0.00022992,2]
[372402408,1752629440555,-572.32,0.00023266,2]
[372402410,1752629440564,-500.0,0.00023276,2]
[372402412,1752629440574,-151.377032,0.000238,7]
[372402414,1752629440583,-735.11563844,0.000239,2]
[372402416,1752629440592,-207.4,0.00023919,2]
[372402418,1752629440602,-500.0,0.00024086,2]
[372402420,1752629440611,-545.347225,0.00024487,8]
[372402422,1752629440621,-151.0,0.000245,8]
[372402424,1752629440631,-1073012.58587074,0.000246,4]
[372402426,1752629440641,-251066.43084136,0.0002465,2]
[372402428,1752629440653,-13159.07615685,0.0002465,2]
[372402430,1752629440663,-501.57966218,0.0002465,2]
[372402432,1752629440672,-300.0,0.00024657,2]
[372402434,1752629440682,-300.0,0.00024657,2]
[372402436,1752629440691,-300.0,0.00024657,2]
[372402438,1752629440700,-300.0,0.00024657,2]
[372402440,1752629440709,-177.4638097,0.00024657,2]
[372402443,1752629440721,-122.5361903,0.00024657,2]
[372402445,1752629440731,-170.82313826,0.00024657,2]
[372402447,1752629440745,-129.17686174,0.00024657,2]
[372402449,1752629440755,-278.33125348,0.00024657,2]
[372402654,1752629442913,-21.66874652,0.00024657,2]
[372402655,1752629442923,-300.0,0.00024657,2]
[372402656,1752629442933,-300.0,0.00024657,2]
[372402657,1752629442943,-300.0,0.00024657,2]
[372402658,1752629442952,-405.89185822,0.00024657,2]
[372402659,1752629442962,-200.0,0.00024658,2]
[372402660,1752629442972,-380.0,0.00024658,2]
[372402661,1752629442981,-200.0,0.00024658,15]
[372402662,1752629442991,-165.41320986,0.00024658,2]
[372402663,1752629443001,-185.88181984,0.00024658,2]
[372402665,1752629443011,-177.931191,0.00024685,2]
[372402667,1752629443021,-159.6475778,0.00024685,2]
[372402669,1752629443031,-575.5129765,0.00024685,2]
[372402671,1752629443040,-198.9233585,0.00024685,2]
[372402673,1752629443050,-177.9926445,0.00024685,2]
[372402676,1752629443062,-319.4079182,0.00024685,2]
[372402679,1752629443072,-551.04073905,0.0002469,10]
[372402681,1752629443081,-168.0,0.00024696,2]
[372402683,1752629443091,-534.16,0.000247,7]
[372402685,1752629443100,-153.0,0.00024712,2]
[372402687,1752629443110,-576.7692041,0.00024712,2]
[372402689,1752629443119,-177.9926445,0.00024712,2]
[372402691,1752629443129,-319.4079182,0.00024712,2]
[372402693,1752629443139,-177.6465207,0.00024712,2]
[372402695,1752629443148,-153.0,0.00024712,2]
[372402697,1752629443158,-576.7692041,0.00024712,2]
[372402699,1752629443168,-306.0,0.00024712,2]
[372402701,1752629443178,-576.7692041,0.00024712,2]
[372402703,1752629443188,-159.7039591,0.00024712,2]
[372402705,1752629443197,-153.0,0.00024712,2]
[372402707,1752629443207,-153.0,0.00024712,2]
[372402709,1752629443216,-153.0,0.00024712,2]
[372402711,1752629443226,-184.724742,0.0002474,7]
[372402714,1752629443236,-12928.91473705,0.00024774,2]
[372402716,1752629443245,-500.0,0.00024799,2]
[372402718,1752629443255,-19407.64140848,0.000248,2]
[372402720,1752629443265,-1418.58800378,0.000248,2]
[372402722,1752629443275,-5849.13388302,0.000248,2]
[372402724,1752629443284,-169.90650003,0.000248,2]
[372402726,1752629443294,-1418.58800374,0.00024871,2]
[372402728,1752629443308,-5048.42966027,0.00024871,2]
[372402730,1752629443318,-5000.0,0.00024871,2]
[372402732,1752629443328,-5000.0,0.00024871,2]
[372402734,1752629443338,-150.28907571,0.00024873,2]
[372402736,1752629443348,-500.0,0.00024877,2]
[372402738,1752629443357,-1949.71129434,0.0002488,2]
[372402740,1752629443367,-500.0,0.00024889,2]
[372402742,1752629443376,-500.0,0.00024889,2]
[372402744,1752629443386,-500.0,0.00024889,2]
[372402746,1752629443396,-500.0,0.00024889,2]
[372402748,1752629443407,-500.0,0.00024889,2]
[372402750,1752629443417,-13452.5917331,0.0002489,2]
[372403062,1752629446382,-1114.73854605,0.0002489,2]
[372403064,1752629446395,-732.15756489,0.0002489,2]
[372403066,1752629446407,-3477.41489794,0.0002489,2]
[372404534,1752629463834,150.0,0.0001769,2]
[372404684,1752629536462,-519.88832802,0.00020708,2]
[372404685,1752629536486,-460.0,0.00020708,2]
[372404686,1752629536509,-135.11167198,0.00020708,2]
[372404687,1752629706854,189.69084123,0.000222,69]
[372404688,1752629731850,1592.0,0.000273,120]
[372404689,1752629840170,363.8937635,0.0002739,120]
[372404693,1752629977548,204.696426,0.00013699,2]
[372404694,1752629992225,-204.696426,0.00020187,2]
[372404695,1752629992246,-885.07556089,0.00020394,2]
[372404696,1752629992267,-160.0,0.00020593,2]
[372404697,1752629992288,-252.43,0.000206,3]
[372404698,1752629992311,-757.31,0.000206,3]
[372404699,1752629992334,-248.06,0.000206,3]
[372404700,1752629992359,-281.95521977,0.000206,2]
[372404701,1752629992380,-2060.57,0.000206,10]
[372404702,1752629992401,-744.2,0.000206,3]
[372404703,1752629992422,-1717.14,0.000206,10]
[372404704,1752629992442,-353.86683644,0.000206,2]
[372404705,1752629992465,-558.50218942,0.00020609,2]
[372404706,1752629992491,-460.0,0.00020609,2]
[372404707,1752629992514,-460.0,0.00020609,2]
[372404708,1752629992535,-555.17136949,0.00020609,2]
[372404709,1752629992557,-461.2954037,0.00020609,2]
[372404710,1752629992577,-317.96181594,0.00020609,2]
[372404711,1752629992600,-275158.76517835,0.0002061,2]
[372404715,1752630338091,-1356.12632276,0.00020065,2]
[372404716,1752630346076,-2353.3059411,0.00020065,2]
[372404720,1752630384993,-789.0,0.00020065,2]
[372404721,1752630430084,-1272.19275903,0.00019,2]
[372404722,1752630441391,-1369.80724097,0.00019,2]
[372404723,1752630441412,-196.84837887,0.00019865,2]
[372404724,1752630441432,-186.45779353,0.00019965,2]
[372404725,1752630441453,-501.56773614,0.00020065,2]
[372404726,1752630441473,-509.77476595,0.00020065,2]
[372404727,1752630441492,-397.58456941,0.00020509,2]
[372404728,1752630441513,-440.73069317,0.00020509,2]
[372404729,1752630441533,-160.0,0.00020563,2]
[372404730,1752630441554,-1200.0,0.00020572,2]
[372404731,1752630441575,-300.0,0.00020597,2]
[372404732,1752630441595,-1200.0,0.00020598,2]
[372404733,1752630441621,-320.35291058,0.00020599,2]
[372404734,1752630441642,-300.0,0.00020599,2]
[372404735,1752630441662,-300.0,0.00020599,2]
[372404736,1752630441686,-300.0,0.00020599,2]
[372404737,1752630441706,-300.0,0.00020599,2]
[372404738,1752630441727,-1430.95,0.000206,10]
[372404739,1752630441746,-1192.46,0.000206,10]
[372404740,1752630441766,-461.98577131,0.00020608,2]
[372404741,1752630441786,-461.72785411,0.00020608,2]
[372404742,1752630441805,-139.15985269,0.00020608,2]
[372404743,1752630448094,-5000.0,0.0001881,2]
[372404744,1752630448115,-174.1210606,0.00019791,2]
[372404745,1752630448136,-167.22261856,0.00020608,2]
[372404746,1752630448156,-527.25008012,0.00020608,2]
[372404747,1752630448179,-500.0,0.00020608,2]
[372404748,1752630448201,-431.21584134,0.00020608,2]
[372404749,1752630448223,-163.99685861,0.00020608,2]
[372404750,1752630448244,-348.53384683,0.00020608,2]
[372404751,1752630448265,-460.0,0.00020608,2]
[372404752,1752630448285,-461.54817369,0.00020608,2]
[372404753,1752630448306,-460.0,0.00020608,2]
[372404754,1752630448325,-326.79543794,0.00020608,2]
[372404755,1752630448345,-460.0,0.00020608,2]
[372404756,1752630448365,-461.0015868,0.00020608,2]
[372404757,1752630448385,-460.0,0.00020608,2]
[372404758,1752630448404,-466.85541896,0.00020608,2]
[372404759,1752630448425,-95.61540762,0.00020608,2]
[372404760,1752630516016,-168.0,0.000189,2]
[372404900,1752630638001,-79.87561745,0.000189,2]
[372404901,1752630638011,-331.0123519,0.00019609,2]
[372404902,1752630638020,-5000.0,0.00020402,2]
[372404903,1752630638030,-265.0563796,0.00020509,2]
[372404904,1752630638039,-265.0563796,0.00020559,2]
[372404905,1752630638049,-300.0,0.00020599,2]
[372404906,1752630638059,-300.0,0.00020599,2]
[372404907,1752630638070,-993.72,0.000206,10]
[372404908,1752630638080,-828.1,0.000206,10]
[372404909,1752630638090,-690.08,0.000206,10]
[372404910,1752630638101,-464.38123824,0.00020607,2]
[372404911,1752630638110,-462.56687151,0.00020607,2]
[372404912,1752630638121,-364.38459238,0.00020608,2]
[372404913,1752630638130,-460.0,0.00020608,2]
[372404914,1752630638139,-460.0,0.00020608,2]
[372404915,1752630638149,-460.0,0.00020608,2]
[372404916,1752630638158,-460.0,0.00020608,2]
[372404917,1752630638167,-460.0,0.00020608,2]
[372404918,1752630638177,-29.57630157,0.00020608,2]
[372404919,1752630638190,-431.79656499,0.00020608,2]
[372404920,1752630638200,-460.0,0.00020608,2]
[372404921,1752630638209,-460.0,0.00020608,2]
[372404922,1752630638219,-460.0,0.00020608,2]
[372404923,1752630638228,-656.93,0.00020608,2]
[372404924,1752630638238,-460.0,0.00020608,2]
[372404925,1752630638247,-460.0,0.00020608,2]
[372404926,1752630638256,-562.20471173,0.00020608,2]
[372404927,1752630638266,-460.0,0.00020608,2]
[372404928,1752630638275,-460.0,0.00020608,2]
[372404929,1752630638284,-1000.0,0.00020608,2]
[372404930,1752630638294,-462.8120209,0.00020608,2]
[372404931,1752630638303,-460.84945967,0.00020608,2]
[372404932,1752630638313,-460.0,0.00020608,2]
[372404933,1752630638323,-462.1846251,0.00020608,2]
[372404934,1752630638332,-460.0,0.00020608,2]
[372404935,1752630638342,-462.45722445,0.00020608,2]
[372404936,1752630638351,-460.0,0.00020608,2]
[372404937,1752630638361,-461.48969389,0.00020608,2]
[372404938,1752630638370,-460.0,0.00020608,2]
[372404939,1752630638379,-460.0,0.00020608,2]
[372404940,1752630638388,-460.0,0.00020608,2]
[372404941,1752630638397,-461.64465599,0.00020608,2]
[372404942,1752630638407,-460.0,0.00020608,2]
[372404943,1752630638416,-460.0,0.00020608,2]
[372404944,1752630638425,-291.68131429,0.00020608,2]
[372404945,1752630638439,-168.31868571,0.00020608,2]
[372404946,1752630638449,-460.0,0.00020608,2]
[372404947,1752630638458,-481.79405198,0.00020608,2]
[372404948,1752630638467,-460.0,0.00020608,2]
[372404949,1752630638477,-460.0,0.00020608,2]
[372404950,1752630638486,-460.0,0.00020608,2]
[372404951,1752630638495,-100.6092841,0.00020608,2]
[372404952,1752630638507,-336.26733391,0.00020608,2]
[372404953,1752630638518,-28.43845761,0.00020608,2]
[372404954,1752630638528,-466.1272621,0.00020608,2]
[372404955,1752630638537,-364.5635478,0.00020608,2]
[372404956,1752630638550,-98.6435745,0.00020608,2]
[372404957,1752630638560,-460.0,0.00020608,2]
[372404958,1752630638569,-462.68724381,0.00020608,2]
[372404959,1752630638579,-462.97687815,0.00020608,2]
[372404960,1752630638589,-82.99314914,0.00020608,2]
[372404961,1752630638600,-377.00685086,0.00020608,2]
[372404962,1752630638610,-240.9772514,0.00020608,2]
[372404963,1752630638622,-224.81807215,0.00020608,2]
[372404964,1752630638632,-460.0,0.00020608,2]
[372404965,1752630638641,-460.0,0.00020609,2]
[372404966,1752630638652,-460.0,0.00020609,2]
[372404967,1752630638661,-218.954372,0.00020609,2]
[372404968,1752630638672,-479.2269231,0.00020609,2]
[372404969,1752630638689,-475.40870984,0.00020609,2]
[372404970,1752630638698,-462.93021019,0.00020609,2]
[372404971,1752630638708,-227.01491188,0.00020609,2]
[372404972,1752630638721,-349.51508812,0.00020609,2]
[372404973,1752630638730,-464.72950394,0.00020609,2]
[372404974,1752630638740,-460.0,0.00020609,2]
[372404975,1752630638749,-476.5538885,0.00020609,2]
[372404976,1752630638760,-460.0,0.00020609,2]
[372404977,1752630638769,-462.43435061,0.00020609,2]
[372404978,1752630638779,-460.0,0.00020609,2]
[372404979,1752630638788,-467.74889204,0.00020609,2]
[372404980,1752630638797,-460.0,0.00020609,2]
[372404981,1752630638806,-401.37884703,0.00020609,2]
[372404982,1752630638816,-462.69483486,0.00020609,2]
[372404983,1752630638826,-460.0,0.00020609,2]
[372404984,1752630638835,-485.75517678,0.00020609,2]
[372404985,1752630638844,-464.58243327,0.00020609,2]
[372404986,1752630638853,-465.28078747,0.00020609,2]
[372404987,1752630638863,-460.0,0.00020609,2]
[372404988,1752630638872,-468.79139319,0.00020609,2]
[372404989,1752630638881,-478.57,0.00020609,2]
[372404990,1752630638891,-460.0,0.00020609,2]
[372404991,1752630638902,-460.0,0.00020609,2]
[372404992,1752630638911,-304.74983735,0.00020609,2]
[372404993,1752630638921,-460.0,0.00020609,2]
[372404994,1752630638932,-25.62989688,0.00020609,2]
[372404995,1752630638944,-434.37010312,0.00020609,2]
[372404996,1752630639058,-460.0,0.00020609,2]
[372404997,1752630639068,-460.0,0.00020609,2]
[372404998,1752630639077,-382.67661638,0.00020609,2]
[372404999,1752630639089,-90.97654233,0.00020609,2]
[372405000,1752630639099,-460.0,0.00020609,2]
[372405001,1752630639108,-460.0,0.00020609,2]
[372405002,1752630639118,-460.0,0.00020609,2]
[372405003,1752630639127,-460.0,0.00020609,2]
[372405004,1752630639137,-483.82826158,0.00020609,2]
[372405005,1752630639146,-65.13223344,0.00020609,2]
[372405006,1752630639178,-394.86776656,0.00020609,2]
[372405007,1752630639190,-460.0,0.00020609,2]
[372405008,1752630639200,-460.0,0.00020609,2]
[372405009,1752630639210,-460.0,0.00020609,2]
[372405010,1752630639220,-439.46577296,0.00020609,2]
[372405187,1752630645954,-5000.0,0.00018711,2]
[372405188,1752630645965,-575.07,0.000206,10]
[372405189,1752630645975,-460.0,0.00020607,2]
[372405190,1752630645985,-477.18723563,0.00020608,2]
[372405191,1752630645995,-20.53422704,0.00020609,2]
[372405192,1752630646005,-460.0,0.00020609,2]
[372405193,1752630646014,-460.0,0.00020609,2]
[372405194,1752630646024,-460.0,0.00020609,2]
[372405195,1752630646035,-463.39140297,0.00020609,2]
[372405196,1752630646044,-460.0,0.00020609,2]
[372405197,1752630646054,-305.76856364,0.00020609,2]
[372405198,1752630646064,-460.0,0.00020609,2]
[372405199,1752630646073,-460.0,0.00020609,2]
[372405200,1752630646083,-460.0,0.00020609,2]
[372405201,1752630646093,-460.0,0.00020609,2]
[372405202,1752630646102,-463.68867527,0.00020609,2]
[372405203,1752630646112,-460.0,0.00020609,2]
[372405204,1752630646122,-460.0,0.00020609,2]
[372405205,1752630646131,-462.89444049,0.00020609,2]
[372405206,1752630646141,-460.91715273,0.00020609,2]
[372405207,1752630646150,-460.0,0.00020609,2]
[372405208,1752630646160,-461.47232212,0.00020609,2]
[372405209,1752630646169,-460.0,0.00020609,2]
[372405210,1752630646179,-460.0,0.00020609,2]
[372405211,1752630646189,-265.0563796,0.00020609,2]
[372405212,1752630646200,-460.0,0.00020609,2]
[372405213,1752630646210,-464.88759222,0.00020609,2]
[372405214,1752630646219,-460.0,0.00020609,2]
[372405215,1752630646228,-460.0,0.00020609,2]
[372405216,1752630646237,-460.0,0.00020609,2]
[372405217,1752630646247,-460.0,0.00020609,2]
[372405218,1752630646256,-460.0,0.00020609,2]
[372405219,1752630646265,-460.0,0.00020609,2]
[372405220,1752630646275,-460.0,0.00020609,2]
[372405221,1752630646285,-460.0,0.00020609,2]
[372405222,1752630646295,-460.0,0.00020609,2]
[372405223,1752630646305,-460.0,0.00020609,2]
[372405224,1752630646314,-460.0,0.00020609,2]
[372405225,1752630646324,-463.03702052,0.00020609,2]
[372405226,1752630646333,-460.0,0.00020609,2]
[372405227,1752630646343,-460.0,0.00020609,2]
[372405228,1752630646352,-460.0,0.00020609,2]
[372405229,1752630646362,-460.0,0.00020609,2]
[372405230,1752630646371,-329.07278962,0.00020609,2]
[372405231,1752630646383,-130.92721038,0.00020609,2]
[372405232,1752630646393,-460.0,0.00020609,2]
[372405233,1752630646402,-460.0,0.00020609,2]
[372405234,1752630646411,-460.0,0.00020609,2]
[372405235,1752630646421,-460.0,0.00020609,2]
[372405236,1752630646431,-238.85386973,0.00020609,2]
[372405237,1752630646730,-221.14613027,0.00020609,2]
[372405238,1752630646741,-288.34391578,0.00020609,2]
[372405243,1752630873561,1356.1651171,0.0002555,50]
[372405244,1752630896438,-5000.0,0.00018711,2]
[372405245,1752630896461,-147.0,0.000189,2]
[372405246,1752630969398,-4996.0,0.00018711,2]
[372405247,1752631088619,5000.0,0.000185,2]
[372405249,1752631165665,-5000.0,0.00018711,2]
[372405250,1752631165686,-60.0,0.000189,2]
[372405252,1752631172515,203.166453,0.00013699,2]
[372405253,1752631186592,152.8,0.00027397,120]
[372405254,1752631235360,-5000.0,0.00018711,2]
[372405255,1752631235382,-500.0,0.00018711,2]
[372405256,1752631235402,-500.0,0.00018711,2]
[372405257,1752631235422,-500.0,0.00018711,2]
[372405258,1752631235443,-500.0,0.00018711,2]
[372405259,1752631235463,-500.0,0.00018711,2]
[372405260,1752631235483,-20.0,0.000189,2]
[372405267,1752631307277,-1200.0,0.0001871,2]
[372405268,1752631307298,-4987.0,0.00018711,2]
[372405270,1752631379944,-160.0,0.00018711,2]
[372405271,1752631379967,-13.0,0.00018711,2]
[372405272,1752631379987,-79.0,0.000189,2]
[372405273,1752631443007,-202.21470722,0.00018611,2]
[372405274,1752631443033,-4243.78529278,0.00018711,2]
[372405275,1752631512761,-756.21470722,0.00018711,2]
[372405276,1752631512784,-71.0,0.000189,2]
[372405277,1752631512807,-889.78529278,0.00019178,2]
[372405278,1752631542666,-256.02065607,0.00018819,2]
[372405279,1752631542688,-1620.91106813,0.00018986,2]
[372405280,1752631558087,-2787.7765154,0.00018986,2]
[372405282,1752631632090,-591.31241647,0.00018986,2]
[372405283,1752631632110,-658.21319196,0.00019178,2]
[372405284,1752631646137,-5000.0,0.00018986,2]
[372405285,1752631646159,-462.3525571,0.00019178,2]
[372405286,1752631646181,-168.65981214,0.0001999,2]
[372405287,1752631646203,-203.166453,0.00020187,2]
[372405288,1752631646224,-428.16895172,0.00020409,2]
[372405289,1752631646246,-1200.0,0.00020498,2]
[372405290,1752631646267,-1200.0,0.00020498,2]
[372405291,1752631646288,-300.0,0.00020498,2]
[372405292,1752631646315,-300.0,0.00020499,2]
[372405293,1752631646334,-300.0,0.00020499,2]
[372405294,1752631646355,-300.0,0.00020499,2]
[372405295,1752631646376,-300.0,0.00020499,2]
[372405296,1752631646396,-358.52909607,0.000205,3]
[372405297,1752631651096,-516.27090393,0.000205,3]
[372405298,1752631651119,-354.69,0.000205,3]
[372405299,1752631651142,-177.35,0.000205,3]
[372405300,1752631651163,-532.06,0.000205,3]
[372405301,1752631651184,-1020.19086182,0.000205,2]
[372405302,1752631651206,-1841.30612355,0.00020507,2]
[372405303,1752631651226,-203.27072837,0.00020507,2]
[372405304,1752631651248,-464.06155878,0.00020508,2]
[372405305,1752631651268,-317.96181594,0.00020508,2]
[372405306,1752631651290,-688.53,0.00020508,2]
[372405307,1752631651312,-469.70679708,0.00020508,2]
[372405308,1752631651333,-460.0,0.00020508,2]
[372405309,1752631651355,-460.0,0.00020508,2]
[372405310,1752631651378,-460.0,0.00020508,2]
[372405311,1752631651411,-460.0,0.00020508,2]
[372405312,1752631651439,-468.45450854,0.00020508,2]
[372405313,1752631651460,-464.4239404,0.00020508,2]
[372405314,1752631651481,-14.84695857,0.00020508,2]
[372405315,1752631652081,-445.15304143,0.00020508,2]
[372405316,1752631652102,-500.0,0.00020508,2]
[372405317,1752631652124,-100.23801011,0.00020508,2]
[372405321,1752631793589,2902.648,0.00027,120]
[372405326,1752631832136,-371.3166898,0.0001951,2]
[372405327,1752631832146,-5000.0,0.00020303,2]
[372405328,1752631832155,-300.0,0.00020506,2]
[372405329,1752631832165,-209.6650467,0.00020506,2]
[372405330,1752631832188,-90.3349533,0.00020506,2]
[372405331,1752631832199,-850.70931489,0.00020506,2]
[372405332,1752631832210,-68.29068511,0.00020506,2]
[372405333,1752631832220,-464.32003476,0.00020507,2]
[372405334,1752631832229,-461.2954037,0.00020507,2]
[372405335,1752631832239,-460.0,0.00020507,2]
[372405336,1752631832249,-357.34387643,0.00020507,2]
[372405463,1752631838147,-122.89175917,0.00020507,2]
[372405465,1752631838157,-330.78067628,0.00020507,2]
[372405485,1752631838496,-129.21932372,0.00020507,2]
[372405486,1752631838505,-461.89257543,0.00020507,2]
[372405487,1752631838515,-476.92708727,0.00020507,2]
[372405488,1752631838527,-460.0,0.00020507,2]
[372405489,1752631838537,-500.0,0.00020507,2]
[372405490,1752631838546,-620.93001255,0.00020507,2]
[372405491,1752631838555,-500.0,0.00020507,2]
[372405492,1752631838564,-500.0,0.00020507,2]
[372405493,1752631838574,-500.0,0.00020507,2]
[372405494,1752631838583,-500.0,0.00020507,2]
[372405495,1752631838593,-500.0,0.00020507,2]
[372405496,1752631838603,-500.0,0.00020507,2]
[372405497,1752631838613,-500.0,0.00020507,2]
[372405498,1752631838623,-500.0,0.00020507,2]
[372405499,1752631838633,-500.0,0.00020507,2]
[372405500,1752631838643,-620.0,0.00020507,2]
[372405501,1752631838652,-370.29965354,0.00020507,2]
[372405502,1752631838662,-500.0,0.00020507,2]
[372405503,1752631838671,-174.20270801,0.00020507,2]
[372405504,1752631838682,-500.0,0.00020507,2]
[372405505,1752631838692,-373.64742678,0.00020507,2]
[372405506,1752631838702,-6557.55716172,0.00020508,2]
[372405507,1752631838712,-460.0,0.00020508,2]
[372405508,1752631838722,-460.0,0.00020508,2]
[372405509,1752631838732,-3241.59,0.00020508,2]
[372405510,1752631838743,-460.0,0.00020508,2]
[372405511,1752631838753,-496.96,0.00020508,2]
[372405512,1752631838762,-485.55085771,0.00020508,2]
[372405513,1752631838773,-460.0,0.00020508,2]
[372405514,1752631838783,-659.84,0.00020508,2]
[372405515,1752631838793,-460.0,0.00020508,2]
[372405516,1752631838803,-460.0,0.00020508,2]
[372405517,1752631838813,-488.87704508,0.00020508,2]
[372405518,1752631838823,-510.23812469,0.00020508,2]
[372405519,1752631838833,-460.0,0.00020508,2]
[372405520,1752631838989,-556.81308536,0.00020508,2]
[372405521,1752631838999,-470.71805385,0.00020508,2]
[372405522,1752631839008,-460.0,0.00020508,2]
[372405523,1752631839022,-460.0,0.00020508,2]
[372405524,1752631839032,-460.0,0.00020508,2]
[372405525,1752631839041,-466.74089404,0.00020508,2]
[372405526,1752631839051,-312.52482486,0.00020508,2]
[372405527,1752631839061,-465.24703488,0.00020508,2]
[372405528,1752631839070,-500.0,0.00020508,2]
[372405529,1752631839080,-460.0,0.00020508,2]
[372405530,1752631839089,-462.61809028,0.00020508,2]
[372405531,1752631839100,-482.68431621,0.00020508,2]
[372405532,1752631839109,-460.0,0.00020508,2]
[372405533,1752631839119,-465.15747711,0.00020508,2]
[372405534,1752631839128,-469.74858731,0.00020508,2]
[372405535,1752631839138,-467.040688,0.00020508,2]
[372405536,1752631839147,-461.54402447,0.00020509,2]
[372405537,1752631839157,-460.0,0.00020509,2]
[372405538,1752631839168,-461.08884693,0.00020509,2]
[372405539,1752631839177,-460.0,0.00020509,2]
[372405540,1752631839187,-460.0,0.00020509,2]
[372405541,1752631839197,-751.41058791,0.00020509,2]
[372405542,1752631839207,-460.0,0.00020509,2]
[372405543,1752631839217,-460.0,0.00020509,2]
[372405544,1752631839227,-462.05405405,0.00020509,2]
[372405545,1752631839237,-464.66762062,0.00020509,2]
[372405546,1752631839255,-462.60962999,0.00020509,2]
[372405547,1752631839265,-464.55129438,0.00020509,2]
[372405548,1752631839275,-463.85688768,0.00020509,2]
[372405549,1752631839286,-463.53682294,0.00020509,2]
[372405550,1752631839295,-467.29651523,0.00020509,2]
[372405551,1752631839309,-460.0,0.00020509,2]
[372405552,1752631839318,-460.0,0.00020509,2]
[372405553,1752631839328,-462.61512538,0.00020509,2]
[372405554,1752631839337,-460.0,0.00020509,2]
[372405555,1752631839347,-460.0,0.00020509,2]
[372405556,1752631839357,-460.0,0.00020509,2]
[372405557,1752631839366,-437.99628126,0.00020509,2]
[372405558,1752631839376,-456.7044824,0.00020509,2]
[372405559,1752631839387,-363.69608515,0.00020509,2]
[372405560,1752631839407,-460.0,0.00020509,2]
[372405561,1752631839417,-444.66306694,0.00020509,2]
[372405562,1752631839426,-460.0,0.00020509,2]
[372405563,1752631839437,-460.0,0.00020509,2]
[372405564,1752631839447,-478.19149582,0.00020509,2]
[372405565,1752631839457,-460.0,0.00020509,2]
[372405566,1752631839467,-460.0,0.00020509,2]
[372405567,1752631839476,-460.0,0.00020509,2]
[372405568,1752631839486,-500.0,0.00020509,2]
[372405569,1752631839496,-516.18287834,0.00020509,2]
[372405571,1752631839505,-460.0,0.00020509,2]
[372405572,1752631839514,-460.0,0.00020509,2]